bitfinex/quotes_SOLUSD_20241225
["timestamp","ask_amount","ask_price","bid_price","bid_amount"]
[1735156647350,9.69472367,199.36,199.29,6.2348]
[1735156647554,9.69472367,199.36,199.29,15.92952367]
[1735156648226,9.69472367,199.36,199.3,9.69472367]
[1735156649353,9.69472367,199.36,199.29,15.92952367]
[1735156650150,9.82021367,199.3,199.19,1.5413]
[1735156650357,9.69472367,199.27,199.2,9.69472367]
[1735156651632,9.69472367,199.28,199.19,1.5413]
[1735156651832,9.69472367,199.28,199.21,9.69472367]
[1735156652275,9.69472367,199.27,199.2,9.69472367]
[1735156654959,9.69472367,199.27,199.19,11.23602367]
[1735156655161,9.69472367,199.26,199.19,11.23602367]
[1735156657783,9.69472367,199.28,199.19,11.23602367]
[1735156658601,9.69472367,199.28,199.19,1.5413]
[1735156658802,9.69472367,199.26,199.19,1.5413]
[1735156660697,9.69472367,199.22,199.14,1.5413]
[1735156660986,9.69472367,199.22,199.14,11.23602367]
[1735156661682,9.69472367,199.21,199.14,11.23602367]
[1735156661883,9.69472367,199.22,199.14,11.23602367]
[1735156662090,9.69472367,199.21,199.14,11.23602367]
[1735156663888,9.69472367,199.21,199.14,1.5413]
[1735156664097,9.69472367,199.18,199.14,1.5413]
[1735156664274,9.69472367,199.15,199.09,1.6303]
[1735156664472,9.69472367,199.13,199.09,1.6303]
[1735156666488,9.69472367,199.14,199.09,1.6303]
[1735156668919,9.69472367,199.14,199.09,1.6003]
[1735156670197,9.69472367,199.11,199.09,1.6003]
[1735156674414,9.69472367,199.13,199.09,1.6003]
[1735156674600,9.69472367,199.11,199.04,7.7018]
[1735156674806,9.69472367,199.09,199.04,7.7018]
[1735156675192,9.69472367,199.1,199.04,7.7018]
[1735156679034,25.1032,199.18,199.04,7.7018]
[1735156679193,9.69472367,199.13,199.05,9.69472367]
[1735156679399,9.69472367,199.13,199.06,9.69472367]
[1735156679914,20.0,199.16,199.07,9.69472367]
[1735156680222,9.69472367,199.14,199.07,9.69472367]
[1735156680415,20.0,199.16,199.07,9.69472367]
[1735156680621,9.69472367,199.14,199.07,9.69472367]
[1735156682521,9.69472367,199.13,199.04,8.45508648]
[1735156682709,9.69472367,199.13,199.05,9.69472367]
[1735156683724,9.69472367,199.13,199.06,9.69472367]
[1735156684723,9.69472367,199.14,199.06,9.69472367]
[1735156687940,32.5527,199.16,199.04,7.7018]
[1735156688099,32.5527,199.16,199.07,9.69472367]
[1735156688100,9.69472367,199.14,199.07,9.69472367]
[1735156689048,9.69472367,199.12,199.04,7.7018]
[1735156689206,9.69472367,199.12,199.04,17.39652367]
[1735156689406,9.69472367,199.14,199.06,9.69472367]
[1735156689940,12.5507,199.2,199.1,9.69472367]
[1735156690134,9.69472367,199.19,199.11,9.69472367]
[1735156690311,9.69472367,199.19,199.12,9.69472367]
[1735156690843,9.69472367,199.18,199.07,2.27893982]
[1735156691056,9.69472367,199.17,199.1,9.69472367]
[1735156692257,9.69472367,199.17,199.07,1.5256]
[1735156692420,9.69472367,199.16,199.09,9.69472367]
[1735156694049,9.69472367,199.16,199.08,9.69472367]
[1735156694343,9.69472367,199.16,199.09,9.69472367]
[1735156695542,9.69472367,199.14,199.07,11.22032367]
[1735156696640,12.5507,199.2,199.08,9.69472367]
[1735156696846,9.69472367,199.15,199.08,9.69472367]
[1735156697053,9.69472367,199.14,199.07,11.22032367]
[1735156697261,9.69472367,199.14,199.07,1.5256]
[1735156698463,9.69472367,199.16,199.09,9.69472367]
[1735156698961,9.69472367,199.17,199.1,9.69472367]
[1735156699335,9.69472367,199.17,199.09,9.69472367]
[1735156700361,12.5496,199.21,199.11,9.69472367]
[1735156700562,9.69472367,199.19,199.11,9.69472367]
[1735156700761,12.5496,199.21,199.11,9.69472367]
[1735156700762,9.69472367,199.18,199.11,9.69472367]
[1735156701663,9.69472367,199.17,199.1,9.69472367]
[1735156701973,9.69472367,199.18,199.11,9.69472367]
[1735156702276,9.69472367,199.18,199.09,7.9553]
[1735156702439,0.12549,199.26,199.12,9.69472367]
[1735156702638,9.69472367,199.19,199.12,9.69472367]
[1735156703470,9.69472367,199.18,199.11,9.69472367]
[1735156703672,9.69472367,199.18,199.09,7.9553]
[1735156703673,12.547,199.25,199.12,9.69472367]
[1735156703853,9.69472367,199.22,199.14,9.69472367]
[1735156704761,9.69472367,199.21,199.14,9.69472367]
[1735156706065,9.69472367,199.21,199.13,9.69472367]
[1735156706764,9.69472367,199.21,199.14,9.69472367]
[1735156707456,9.69472367,199.21,199.13,9.69472367]
[1735156708369,9.69472367,199.21,199.14,9.69472367]
[1735156708548,9.69472367,199.22,199.14,9.69472367]
[1735156708748,9.69472367,199.23,199.15,9.69472367]
[1735156709048,9.69472367,199.22,199.15,9.69472367]
[1735156710542,9.69472367,199.22,199.16,1.5996]
[1735156710745,12.5432,199.31,199.19,9.69472367]
[1735156710967,9.69472367,199.28,199.21,9.69472367]
[1735156711147,9.69472367,199.27,199.2,9.69472367]
[1735156711358,9.69472367,199.26,199.19,9.69472367]
[1735156713249,9.69472367,199.28,199.2,9.69472367]
[1735156713456,9.69472367,199.27,199.2,9.69472367]
[1735156714078,9.69472367,199.28,199.21,9.69472367]
[1735156714251,9.69472367,199.29,199.22,9.69472367]
[1735156715983,9.69472367,199.27,199.2,20.0]
[1735156716181,9.69472367,199.28,199.21,9.69472367]
[1735156722806,9.69472367,199.29,199.22,9.69472367]
[1735156723600,12.5431,199.32,199.23,11.27132367]
[1735156723797,9.69472367,199.31,199.24,9.69472367]
[1735156725194,9.69472367,199.3,199.23,11.27132367]
[1735156725498,9.69472367,199.31,199.24,9.69472367]
[1735156727403,20.0,199.33,199.26,9.69472367]
[1735156727577,29.69472367,199.33,199.26,9.69472367]
[1735156728713,9.69472367,199.32,199.25,15.81182367]
[1735156729211,20.0,199.33,199.26,1.5951]
[1735156729505,29.69472367,199.33,199.26,1.5951]
[1735156729811,9.69472367,199.32,199.26,1.5951]
[1735156732805,9.69472367,199.31,199.26,1.5951]
[1735156734104,9.69472367,199.29,199.26,1.5951]
[1735156744747,12.543,199.32,199.26,1.5951]
[1735156744957,22.23772367,199.32,199.26,1.5951]
[1735156749128,12.5407,199.35,199.26,11.28982367]
[1735156749446,9.69472367,199.34,199.26,11.28982367]
[1735156749650,9.69472367,199.33,199.26,11.28982367]
[1735156752734,9.69472367,199.33,199.26,1.5951]
[1735156755360,9.69472367,199.31,199.26,1.5951]
[1735156756466,9.69472367,199.29,199.26,1.5951]
[1735156756966,9.69472367,199.27,199.26,1.5951]
[1735156759868,9.69472367,199.27,199.21,1.6501]
[1735156760040,9.69472367,199.25,199.21,1.6501]
[1735156763246,9.69472367,199.26,199.21,1.6501]
[1735156765071,9.69472367,199.28,199.21,11.34482367]
[1735156766971,9.69472367,199.27,199.21,1.6501]
[1735156767271,9.69472367,199.26,199.21,1.6501]
[1735156767474,9.69472367,199.25,199.21,1.6501]
[1735156767774,9.69472367,199.26,199.21,1.6501]
[1735156768575,9.69472367,199.25,199.21,1.6501]
[1735156771373,9.69472367,199.26,199.21,1.6501]
[1735156774689,20.0,199.35,199.23,9.69472367]
[1735156774890,9.69472367,199.3,199.23,9.69472367]
[1735156775391,20.0,199.35,199.24,7.7153]
[1735156775574,9.69472367,199.31,199.24,17.41002367]
[1735156777083,9.69472367,199.31,199.24,7.7153]
[1735156777282,9.69472367,199.3,199.24,7.7153]
[1735156790889,9.69472367,199.29,199.24,7.7153]
[1735156792210,32.541,199.35,199.24,7.7153]
[1735156792387,9.69472367,199.3,199.24,7.7153]
[1735156792706,9.69472367,199.31,199.24,7.7153]
[1735156792891,9.69472367,199.3,199.24,7.7153]
[1735156794103,9.69472367,199.29,199.24,7.7153]
[1735156802296,9.69472367,199.32,199.24,8.467951]
[1735156802604,12.538,199.4,199.29,9.69472367]
[1735156802808,9.69472367,199.36,199.29,9.69472367]
[1735156803000,12.538,199.4,199.27,10.44714496]
[1735156803001,9.69472367,199.34,199.27,10.44714496]
[1735156803205,9.69472367,199.31,199.26,1.5984]
[1735156803400,51.31689468,199.4,199.26,1.5984]
[1735156803401,9.69472367,199.32,199.28,7.77485339]
[1735156803602,9.69472367,199.35,199.28,17.46957706]
[1735156804516,9.69472367,199.36,199.29,9.69472367]
[1735156805618,12.5357,199.43,199.32,9.69472367]
[1735156805815,9.69472367,199.39,199.33,9.69472367]
[1735156806803,9.69472367,199.41,199.34,9.69472367]
[1735156807604,9.69472367,199.38,199.32,0.12549]
[1735156807804,9.69472367,199.4,199.33,9.69472367]
[1735156808006,1.8910769,199.48,199.36,9.69472367]
[1735156808207,12.5324,199.49,199.37,9.69472367]
[1735156808420,12.5324,199.49,199.35,0.12549]
[1735156808421,9.69472367,199.44,199.38,15.82012367]
[1735156808604,9.69472367,199.45,199.38,15.82012367]
[1735156809323,12.5324,199.49,199.38,6.1254]
[1735156809324,9.69472367,199.44,199.38,6.1254]
[1735156809526,9.69472367,199.44,199.39,1.6039]
[1735156811423,9.69472367,199.46,199.39,11.29862367]
[1735156811817,9.69472367,199.45,199.39,11.29862367]
[1735156812210,9.69472367,199.45,199.39,1.6039]
[1735156812611,9.69472367,199.45,199.39,11.29862367]
[1735156813420,9.69472367,199.46,199.4,9.69472367]
[1735156815142,9.69472367,199.46,199.39,11.29862367]
[1735156817347,114.2377,199.55,199.39,11.29862367]
[1735156817348,9.69472367,199.45,199.39,11.29862367]
[1735156818247,9.69472367,199.46,199.39,11.29862367]
[1735156818828,9.69472367,199.46,199.4,9.69472367]
[1735156819242,9.69472367,199.46,199.39,11.29862367]
[1735156820347,9.69472367,199.46,199.4,9.69472367]
[1735156820746,9.69472367,199.45,199.39,1.6039]
[1735156820929,9.69472367,199.42,199.39,1.6039]
[1735156821126,9.69472367,199.41,199.39,1.6039]
[1735156821722,9.69472367,199.4,199.39,1.6039]
[1735156821926,9.69472367,199.4,199.34,9.69472367]
[1735156821927,9.69472367,199.4,199.34,11.33332367]
[1735156822324,9.69472367,199.41,199.34,11.33332367]
[1735156822728,9.69472367,199.41,199.35,9.69472367]
[1735156823148,9.69472367,199.43,199.36,9.69472367]
[1735156824044,22.23002367,199.44,199.37,9.69472367]
[1735156825550,9.69472367,199.43,199.36,9.69472367]
[1735156827244,9.69472367,199.43,199.37,9.69472367]
[1735156828650,9.69472367,199.44,199.37,9.69472367]
[1735156830162,9.69472367,199.44,199.38,9.69472367]
[1735156830837,9.69472367,199.45,199.38,9.69472367]
[1735156831031,9.69472367,199.44,199.38,9.69472367]
[1735156831756,9.69472367,199.45,199.38,9.69472367]
[1735156832063,9.69472367,199.44,199.38,9.69472367]
[1735156833559,12.5325,199.48,199.39,9.69472367]
[1735156833759,9.69472367,199.47,199.4,9.69472367]
[1735156833945,22.22722367,199.48,199.41,9.69472367]
[1735156836456,9.69472367,199.49,199.42,9.69472367]
[1735156837159,9.69472367,199.5,199.43,9.69472367]
[1735156837459,9.69472367,199.49,199.43,9.69472367]
[1735156838235,9.69472367,199.5,199.44,9.69472367]
[1735156838754,12.5281,199.55,199.44,9.69472367]
[1735156838755,9.69472367,199.51,199.44,9.69472367]
[1735156839958,9.69472367,199.51,199.45,1.5049]
[1735156840259,9.69472367,199.5,199.45,1.5049]
[1735156841660,20.0,199.57,199.48,9.69472367]
[1735156841833,9.69472367,199.55,199.48,9.69472367]
[1735156842966,27.0620485,199.64,199.49,9.69472367]
[1735156843140,12.5231,199.63,199.49,9.69472367]
[1735156843344,9.69472367,199.56,199.5,9.69472367]
[1735156843559,37.5694,199.63,199.5,9.69472367]
[1735156843745,37.5694,199.63,199.52,9.69472367]
[1735156843946,12.5212,199.66,199.6,9.69472367]
[1735156844177,12.5192,199.7,199.6,9.69472367]
[1735156844339,12.5192,199.7,199.61,9.69472367]
[1735156844742,9.69472367,199.68,199.61,9.69472367]
[1735156845349,12.5156,199.75,199.63,9.69472367]
[1735156845558,12.5156,199.75,199.64,1.5152]
[1735156845841,9.69472367,199.72,199.65,9.69472367]
[1735156846047,9.69472367,199.73,199.66,9.69472367]
[1735156846257,12.5156,199.75,199.64,1.5152]
[1735156846461,9.69472367,199.7,199.64,1.5152]
[1735156847255,25.0276,199.78,199.64,1.5152]
[1735156847445,9.69472367,199.7,199.64,1.5152]
[1735156848370,9.69472367,199.71,199.64,11.20992367]
[1735156850571,20.0,199.74,199.64,11.20992367]
[1735156850768,9.69472367,199.72,199.64,11.20992367]
[1735156850941,9.69472367,199.71,199.64,11.20992367]
[1735156851671,9.69472367,199.71,199.64,1.5152]
[1735156852874,9.69472367,199.71,199.64,11.20992367]
[1735156854270,20.0,199.74,199.68,9.69472367]
[1735156854575,20.0,199.74,199.67,9.69472367]
[1735156854777,20.0,199.72,199.67,9.69472367]
[1735156856152,29.69472367,199.72,199.66,6.078]
[1735156856758,20.0,199.74,199.66,15.77272367]
[1735156856962,29.69472367,199.74,199.67,9.69472367]
[1735156857278,20.0,199.74,199.68,9.69472367]
[1735156857473,20.0,199.73,199.68,9.69472367]
[1735156857962,20.0,199.74,199.69,9.69472367]
[1735156858162,22.20952367,199.77,199.7,9.69472367]
[1735156859167,22.5123,199.81,199.71,11.30612367]
[1735156859369,20.0,199.78,199.71,11.30612367]
[1735156859563,20.0,199.76,199.71,11.30612367]
[1735156860079,20.0,199.75,199.71,11.30612367]
[1735156860581,22.5123,199.81,199.74,9.69472367]
[1735156860760,32.20702367,199.81,199.74,9.69472367]
[1735156861757,22.5123,199.81,199.74,9.69472367]
[1735156861958,32.20702367,199.81,199.74,9.69472367]
[1735156862472,10.0,199.81,199.74,9.69472367]
[1735156862672,19.69472367,199.81,199.74,9.69472367]
[1735156863184,20.0,199.78,199.74,9.69472367]
[1735156863386,9.69472367,199.76,199.67,1.6114]
[1735156863586,9.69472367,199.74,199.67,11.30612367]
[1735156864484,9.69472367,199.75,199.68,9.82021367]
[1735156864682,9.69472367,199.75,199.68,9.69472367]
[1735156865599,9.69472367,199.75,199.67,11.30612367]
[1735156867004,9.69472367,199.76,199.68,9.69472367]
[1735156867188,20.0,199.73,199.68,9.69472367]
[1735156867963,20.0,199.73,199.71,9.69472367]
[1735156868165,20.0,199.75,199.71,9.69472367]
[1735156868998,12.5124,199.81,199.74,9.69472367]
[1735156869192,9.69472367,199.84,199.76,9.69472367]
[1735156869390,22.20452367,199.85,199.78,9.69472367]
[1735156869768,12.5098,199.85,199.78,9.69472367]
[1735156870369,12.5073,199.89,199.8,9.69472367]
[1735156870589,20.0,199.84,199.79,9.69472367]
[1735156870803,20.0,199.83,199.79,9.69472367]
[1735156872773,20.0,199.83,199.78,9.69472367]
[1735156872970,22.12694343,199.82,199.78,9.69472367]
[1735156874808,20.0,199.81,199.77,9.69472367]
[1735156874984,20.0,199.81,199.76,9.69472367]
[1735156875173,20.0,199.8,199.76,9.69472367]
[1735156878610,2.12694343,199.82,199.77,9.69472367]
[1735156878782,20.0,199.81,199.77,9.69472367]
[1735156879314,20.0,199.81,199.76,9.69472367]
[1735156879901,20.0,199.8,199.76,9.69472367]
[1735156880706,2.12694343,199.82,199.77,9.69472367]
[1735156881623,2.12694343,199.82,199.74,30.12549]
[1735156881811,11.8216671,199.82,199.75,9.69472367]
[1735156882225,2.12694343,199.82,199.78,0.12549]
[1735156882524,2.12694343,199.82,199.78,9.82021367]
[1735156883419,20.0,199.81,199.76,9.69472367]
[1735156883906,2.12694343,199.82,199.78,9.69472367]
[1735156887210,2.12694343,199.82,199.73,2.36198003]
[1735156887415,20.0,199.81,199.76,9.69472367]
[1735156887585,20.0,199.8,199.76,9.69472367]
[1735156888996,20.0,199.8,199.74,9.69472367]
[1735156889195,20.0,199.79,199.73,1.6114]
[1735156889405,20.0,199.78,199.73,1.6114]
[1735156889732,20.0,199.77,199.73,11.30612367]
[1735156890520,20.0,199.76,199.73,11.30612367]
[1735156893523,20.0,199.76,199.73,1.6114]
[1735156893821,20.0,199.76,199.71,9.69472367]
[1735156894430,20.0,199.76,199.72,9.69472367]
[1735156895215,20.0,199.76,199.71,9.69472367]
[1735156896841,20.0,199.76,199.72,9.69472367]
[1735156899639,20.0,199.76,199.74,9.69472367]
[1735156899847,20.0,199.76,199.73,9.69472367]
[1735156900046,20.0,199.76,199.72,9.69472367]
[1735156901322,20.0,199.76,199.71,9.69472367]
[1735156901844,20.0,199.76,199.72,9.69472367]
[1735156908336,20.0,199.76,199.74,9.69472367]
[1735156909442,20.0,199.79,199.74,9.69472367]
[1735156909831,20.0,199.78,199.74,9.69472367]
[1735156912944,2.12694343,199.82,199.76,9.69472367]
[1735156913144,2.12694343,199.82,199.78,9.69472367]
[1735156913653,2.12694343,199.82,199.79,9.69472367]
[1735156914225,2.12694343,199.82,199.8,9.69472367]
[1735156914432,2.12694343,199.82,199.81,9.69472367]
[1735156915755,22.12694343,199.82,199.81,9.69472367]
[1735156916358,2.12694343,199.82,199.8,9.69472367]
[1735156918953,2.12694343,199.82,199.81,9.69472367]
[1735156919338,2.12694343,199.82,199.81,40.57066186]
[1735156919543,2.12694343,199.82,199.81,42.22696186]
[1735156920152,0.46034343,199.82,199.81,66.00384586]
[1735156920349,9.69472367,199.96,199.87,0.12549]
[1735156920535,9.69472367,199.95,199.86,0.75023012]
[1735156920729,9.69472367,199.94,199.87,9.69472367]
[1735156920934,37.5018,199.99,199.83,30.0]
[1735156921155,9.69472367,199.94,199.87,9.69472367]
[1735156921341,9.69472367,199.94,199.86,9.69472367]
[1735156921756,20.0,199.9,199.84,0.75028994]
[1735156921960,20.0,199.89,199.84,9.69472367]
[1735156922162,20.0,199.89,199.85,9.69472367]
[1735156922658,20.0,199.89,199.86,9.69472367]
[1735156922859,20.0,199.9,199.86,9.69472367]
[1735156924452,20.0,199.88,199.83,0.75032096]
[1735156924665,20.0,199.88,199.84,9.69472367]
[1735156924846,20.0,199.88,199.85,9.69472367]
[1735156925962,20.0,199.86,199.78,30.75037424]
[1735156926185,20.0,199.84,199.79,9.69472367]
[1735156926837,20.0,199.84,199.8,9.69472367]
[1735156927377,20.0,199.84,199.79,9.69472367]
[1735156929778,20.0,199.83,199.79,9.69472367]
[1735156933067,20.0,199.85,199.8,9.69472367]
[1735156933272,20.0,199.85,199.82,9.69472367]
[1735156935886,20.0,199.85,199.79,0.75045917]
[1735156936046,20.0,199.84,199.8,9.69472367]
[1735156936250,20.0,199.85,199.8,9.69472367]
[1735156937487,20.0,199.85,199.82,9.69472367]
[1735156937772,20.0,199.86,199.82,9.69472367]
[1735156937997,20.0,199.87,199.82,9.69472367]
[1735156938355,20.0,199.85,199.82,9.69472367]
[1735156938773,20.0,199.87,199.83,9.69472367]
[1735156939459,20.0,199.87,199.82,0.12549]
[1735156939653,20.0,199.87,199.82,9.82021367]
[1735156941078,20.0,199.87,199.8,0.7504534]
[1735156941283,20.0,199.87,199.82,9.69472367]
[1735156941785,20.0,199.87,199.83,9.69472367]
[1735156943082,20.0,199.87,199.82,9.69472367]
[1735156944801,20.0,199.87,199.81,0.12549]
[1735156944984,20.0,199.87,199.82,9.69472367]
[1735156945285,20.0,199.86,199.82,9.69472367]
[1735156946003,20.0,199.86,199.77,32.79641522]
[1735156946160,20.0,199.86,199.8,9.69472367]
[1735156947989,20.0,199.86,199.78,0.12549]
[1735156948186,20.0,199.86,199.8,9.69472367]
[1735156950088,20.0,199.86,199.81,9.69472367]
[1735156950984,20.0,199.86,199.8,9.69472367]
[1735156952699,20.0,199.86,199.81,9.69472367]
[1735156952990,0.30527633,199.79,199.78,0.12549]
[1735156953164,0.30527633,199.79,199.78,9.82021367]
[1735156953997,0.30527633,199.79,199.78,321.82021367]
[1735156954173,0.30527633,199.79,199.77,2.04594757]
[1735156954383,0.30527633,199.79,199.78,9.69472367]
[1735156954893,0.30527633,199.79,199.78,9.82021367]
[1735156964578,0.30527633,199.79,199.78,33.59709767]
[1735156964984,9.69472367,199.91,199.84,9.69472367]
[1735156965805,9.69472367,199.9,199.84,9.69472367]
[1735156966011,20.0,199.89,199.85,9.69472367]
[1735156966308,18.7191,199.96,199.88,9.69472367]
[1735156966711,18.7191,199.96,199.9,9.69472367]
[1735156967382,12.503,199.96,199.9,9.69472367]
[1735156968107,20.0,199.93,199.9,9.69472367]
[1735156968308,29.69472367,199.97,199.9,9.69472367]
[1735156970091,20.0,199.97,199.9,9.69472367]
[1735156970317,29.69472367,199.97,199.9,9.69472367]
[1735156972712,20.0,199.92,199.88,10.4449201]
[1735156973218,20.0,199.92,199.89,9.69472367]
[1735156973417,20.0,199.93,199.89,9.69472367]
[1735156974929,20.0,199.93,199.88,9.69472367]
[1735156975622,12.502,199.97,199.88,9.69472367]
[1735156975623,20.0,199.94,199.88,9.69472367]
[1735156975798,20.0,199.92,199.88,9.69472367]
[1735156978424,20.0,199.92,199.87,9.69472367]
[1735156978629,29.69472367,199.92,199.85,9.69472367]
[1735156979538,20.0,199.92,199.88,9.69472367]
[1735156979735,20.0,199.92,199.89,9.69472367]
[1735156980037,20.0,199.92,199.88,9.69472367]
[1735156980713,20.0,199.92,199.85,0.75031729]
[1735156980910,20.0,199.92,199.87,9.69472367]
[1735156981109,22.20032367,199.91,199.83,7.7108]
[1735156981430,20.0,199.92,199.85,0.12549]
[1735156981609,20.0,199.93,199.88,9.82021367]
[1735156981944,20.0,199.92,199.88,9.69472367]
[1735156982132,20.0,199.92,199.86,0.75021555]
[1735156982343,20.0,199.92,199.86,10.44493922]
[1735156983333,20.0,199.92,199.87,9.69472367]
[1735156983836,20.0,199.93,199.89,9.69472367]
[1735156984003,12.5025,199.96,199.89,9.69472367]
[1735156984207,20.0,199.93,199.89,9.69472367]
[1735156985642,20.0,199.93,199.88,39.69472367]
[1735156985827,20.0,199.93,199.88,9.69472367]
[1735156986529,12.5025,199.96,199.9,9.82021367]
[1735156988934,9.69472367,199.95,199.88,10.4448702]
[1735156989121,22.19722367,199.96,199.89,9.69472367]
[1735156989865,9.69472367,199.95,199.88,9.69472367]
[1735156990834,22.19722367,199.96,199.89,9.69472367]
[1735156992137,9.69472367,199.95,199.85,30.0]
[1735156992344,9.69472367,199.94,199.85,0.75029875]
[1735156992541,9.69472367,199.94,199.87,9.69472367]
[1735156992738,20.0,199.93,199.87,9.69472367]
[1735156992915,20.0,199.93,199.84,30.0]
[1735156993120,20.0,199.93,199.86,9.69472367]
[1735156993614,36.992193,200.0,199.92,9.69472367]
[1735156993816,36.992193,200.0,199.94,9.69472367]
[1735156995435,9.69472367,199.98,199.87,30.0]
[1735156995732,9.69472367,199.95,199.88,9.69472367]
[1735156995937,9.69472367,199.94,199.86,0.75025398]
[1735156996242,9.69472367,199.94,199.87,9.69472367]
[1735156996422,29.69472367,199.95,199.88,9.69472367]
[1735156996813,9.69472367,199.94,199.87,9.69472367]
[1735156998335,29.69472367,199.95,199.87,9.69472367]
[1735156998541,29.69472367,199.95,199.88,9.69472367]
[1735156999340,20.0,199.93,199.88,9.69472367]
[1735157001442,20.0,199.93,199.89,9.69472367]
[1735157003732,22.19772367,199.96,199.89,9.69472367]
[1735157004926,22.19772367,199.96,199.88,9.69472367]
[1735157005427,9.69472367,199.92,199.85,1.5954]
[1735157005628,29.69472367,199.93,199.86,9.69472367]
[1735157005835,20.0,199.93,199.87,9.69472367]
[1735157006543,20.0,199.93,199.88,9.69472367]
[1735157007046,12.5037,199.94,199.88,9.69472367]
[1735157007247,22.19592367,199.98,199.91,9.69472367]
[1735157007449,1.5513,199.99,199.93,9.69472367]
[1735157007644,24.491693,200.0,199.95,9.69472367]
[1735157008445,24.491693,200.0,199.96,9.69472367]
[1735157008639,24.491693,200.0,199.95,321.69472367]
[1735157009437,24.491693,200.0,199.95,9.69472367]
[1735157009949,24.491693,200.0,199.94,9.69472367]
[1735157010161,24.491693,200.0,199.93,9.69472367]
[1735157010335,34.18641667,200.0,199.93,9.69472367]
[1735157010653,9.69472367,199.97,199.89,9.69472367]
[1735157010857,9.69472367,199.97,199.87,44.01769274]
[1735157011035,9.69472367,199.97,199.89,9.69472367]
[1735157011735,20.0,199.96,199.9,9.69472367]
[1735157011934,9.69472367,199.97,199.9,9.69472367]
[1735157014458,22.19712367,199.97,199.9,9.69472367]
[1735157016852,12.5024,199.97,199.92,9.69472367]
[1735157017164,46.68651667,200.0,199.93,9.69472367]
[1735157017346,20.0,199.97,199.93,9.69472367]
[1735157018064,20.0,199.97,199.92,9.69472367]
[1735157025654,36.991793,200.0,199.92,9.69472367]
[1735157025858,46.68651667,200.0,199.93,9.69472367]
[1735157026245,36.991793,200.0,199.94,9.69472367]
[1735157026955,36.991793,200.0,199.95,9.69472367]
[1735157027369,24.491693,200.0,199.97,9.69472367]
[1735157031975,24.491693,200.0,199.98,39.82021367]
[1735157033842,24.491693,200.0,199.98,41.40931367]
[1735157034970,24.491693,200.0,199.99,9.69472367]
[1735157036570,24.491693,200.0,199.99,9.82021367]
[1735157039152,24.491693,200.0,199.99,321.82021367]
[1735157039672,24.491693,200.0,199.99,9.82021367]
[1735157040575,24.491693,200.0,199.98,1.5891]
[1735157040875,24.491693,200.0,199.99,9.69472367]
[1735157042462,24.491693,200.0,199.98,9.69472367]
[1735157042663,24.491693,200.0,199.99,9.69472367]
[1735157042859,24.491693,200.0,199.98,9.69472367]
[1735157043273,24.491693,200.0,199.94,342.0]
[1735157043464,24.491693,200.0,199.95,9.69472367]
[1735157044874,12.5006,199.99,199.9,30.0]
[1735157045074,12.5006,199.99,199.93,9.69472367]
[1735157045269,12.5006,199.99,199.94,9.69472367]
[1735157045673,12.5006,199.99,199.93,9.69472367]
[1735157046255,24.491693,200.0,199.98,9.69472367]
[1735157046452,24.491693,200.0,199.99,9.69472367]
[1735157046660,24.491693,200.0,199.98,9.69472367]
[1735157046992,24.491693,200.0,199.97,9.69472367]
[1735157047286,24.491693,200.0,199.92,30.0]
[1735157047492,24.491693,200.0,199.96,9.69472367]
[1735157048480,24.491693,200.0,199.97,9.69472367]
[1735157048775,24.491693,200.0,199.93,0.12549]
[1735157048980,24.491693,200.0,199.97,9.69472367]
[1735157052897,24.491693,200.0,199.98,9.69472367]
[1735157053563,24.491693,200.0,199.99,9.69472367]
[1735157054203,24.491693,200.0,199.94,30.0]
[1735157054380,24.491693,200.0,199.94,9.69472367]
[1735157054703,24.491693,200.0,199.95,9.69472367]
[1735157055006,24.491693,200.0,199.96,9.69472367]
[1735157058771,24.491693,200.0,199.95,9.69472367]
[1735157059308,24.491693,200.0,199.9,0.75010361]
[1735157059609,9.69472367,199.98,199.91,9.69472367]
[1735157060997,12.5006,199.99,199.94,9.69472367]
[1735157061207,35.75911667,200.0,199.94,9.69472367]
[1735157062803,26.064393,200.0,199.94,9.69472367]
[1735157064026,35.75911667,200.0,199.93,9.69472367]
[1735157065013,26.064393,200.0,199.94,9.69472367]
[1735157069017,26.064393,200.0,199.95,9.69472367]
[1735157069304,26.064393,200.0,199.96,9.69472367]
[1735157069891,26.064393,200.0,199.95,9.69472367]
[1735157078009,24.491693,200.0,199.96,9.69472367]